bitfinex-derivatives/quotes_ETHF0:USTF0_20241228
["timestamp","ask_amount","ask_price","bid_price","bid_amount"]
[1735395986085,0.29562,3388.6,3388.5,0.29562]
[1735395986479,0.29563,3388.5,3388.4,0.29563]
[1735395987278,0.29564,3388.4,3388.3,41.09564]
[1735395987485,0.29564,3388.4,3388.3,40.8]
[1735395988586,0.29564,3388.5,3388.4,0.29563]
[1735395988784,0.73902,3388.8,3388.3,40.8]
[1735395988984,0.29564,3388.4,3388.3,41.09563]
[1735395990086,0.29564,3388.4,3388.3,40.8]
[1735395993389,1.6680636,3388.6,3388.2,3.2078]
[1735395993593,0.29564,3388.3,3388.2,3.2078]
[1735395994386,1.1689,3389.4,3388.2,44.0078]
[1735395994688,0.73897,3389.0,3388.3,0.46206607]
[1735395994891,0.29562,3388.7,3388.6,0.29562]
[1735395995386,0.29563,3388.6,3388.5,0.29562]
[1735395996092,1.6680636,3388.8,3388.2,44.0078]
[1735395996296,0.29564,3388.4,3388.3,0.46207794]
[1735395997187,0.29564,3388.3,3388.2,3.2078]
[1735395998693,0.29568,3387.9,3387.8,3.2078]
[1735395998893,1.9637436,3387.9,3387.8,3.2078]
[1735395999088,1.6680636,3387.9,3387.4,4.4185]
[1735395999283,0.29571,3387.5,3387.4,3.2078]
[1735395999689,0.29571,3387.5,3387.4,3.67004792]
[1735395999989,0.29571,3387.5,3387.4,3.2078]
[1735396000990,0.7392,3388.0,3387.4,3.50352]
[1735396001185,0.29571,3387.5,3387.4,3.50352]
[1735396001389,1.9637736,3387.5,3387.4,3.2078]
[1735396002088,1.6680636,3387.8,3387.4,3.2078]
[1735396002389,1.6680636,3388.4,3387.5,1.20148054]
[1735396002689,1.6680636,3388.1,3388.0,3.50347]
[1735396003082,0.29565,3388.3,3388.0,3.2078]
[1735396003387,1.6680636,3388.4,3388.1,41.09566]
[1735396003584,0.29564,3388.3,3388.2,0.29565]
[1735396003788,0.29565,3388.2,3388.1,41.09566]
[1735396003987,0.29565,3388.3,3388.2,0.29565]
[1735396004190,0.29566,3388.2,3388.1,0.29566]
[1735396004385,1.6680636,3388.4,3388.3,0.29564]
[1735396004690,1.9637036,3388.4,3388.3,41.09564]
[1735396004993,1.6680636,3388.4,3388.3,41.09564]
[1735396005695,1.6680636,3388.4,3388.3,0.29564]
[1735396006197,0.29562,3388.6,3388.1,40.8]
[1735396006401,0.29562,3388.6,3388.5,0.29563]
[1735396006995,0.29563,3388.5,3388.4,0.29563]
[1735396007594,1.6680636,3388.7,3388.6,0.29562]
[1735396007790,1.6680636,3389.0,3388.5,1.2418]
[1735396008002,1.6680636,3389.3,3388.9,3.2078]
[1735396008197,0.29554,3389.5,3388.9,3.94677]
[1735396008397,0.29557,3389.2,3389.0,0.29558]
[1735396008704,0.29558,3389.0,3388.9,3.50339]
[1735396008905,1.9636436,3389.0,3388.9,3.2078]
[1735396013405,1.9636436,3389.0,3388.4,3.2078]
[1735396013406,0.29563,3388.5,3388.4,3.2078]
[1735396017502,3.90483,3388.5,3388.4,3.2078]
[1735396017703,2.68473,3388.5,3388.4,3.2078]
[1735396020301,0.29566,3388.1,3388.0,3.2078]
[1735396020499,1.9637236,3388.1,3388.0,3.2078]
[1735396020900,1.6680636,3388.1,3387.5,42.0399]
[1735396021209,1.9637636,3387.7,3387.6,0.29571]
[1735396021708,0.29571,3387.6,3387.5,1.53561]
[1735396021910,1.6680636,3387.7,3387.5,1.53561]
[1735396022099,0.29571,3387.6,3387.5,1.53561]
[1735396022603,0.29571,3387.6,3387.5,1.2399]
[1735396025513,1.6680636,3387.7,3387.5,1.2399]
[1735396025711,1.6680636,3387.7,3387.6,0.29571]
[1735396026012,1.9637636,3387.7,3387.6,0.29571]
[1735396026215,1.9637636,3387.7,3387.6,1.43271]
[1735396026516,0.29569,3387.8,3387.6,1.43271]
[1735396026715,1.9637236,3388.1,3388.0,0.29567]
[1735396027012,1.9637236,3388.1,3388.0,3.2078]
[1735396027214,1.9637236,3388.1,3388.0,3.50347]
[1735396027408,1.6680636,3388.1,3387.7,0.29569]
[1735396027714,0.29572,3387.5,3387.3,1.46282]
[1735396028211,0.29572,3387.4,3387.3,1.46282]
[1735396028414,1.6680636,3387.5,3387.3,1.1671]
[1735396028614,0.29567,3388.1,3388.0,0.29567]
[1735396028813,1.6680636,3388.4,3388.0,3.2078]
[1735396029014,0.29566,3388.2,3388.1,1.48126]
[1735396029213,0.29566,3388.2,3388.1,2.70836]
[1735396029619,0.29566,3388.2,3388.1,2.4127]
[1735396030115,0.29566,3388.2,3388.1,2.70836]
[1735396030313,0.29565,3388.3,3388.2,0.29565]
[1735396030512,1.6680636,3388.7,3388.3,0.29564]
[1735396030815,1.6680636,3388.7,3388.1,2.4127]
[1735396031015,0.73908,3388.5,3388.1,2.4127]
[1735396031216,1.6680636,3388.6,3388.1,2.4127]
[1735396031518,0.29563,3388.6,3388.4,0.29563]
[1735396031713,0.29563,3388.6,3388.5,1.2356]
[1735396031911,3.2078,3388.8,3388.5,1.2356]
[1735396032115,3.2078,3388.8,3388.6,0.29561]
[1735396032116,0.2956,3388.8,3388.6,0.29561]
[1735396032611,0.2956,3388.8,3388.7,0.29561]
[1735396032923,0.2956,3388.9,3388.7,0.29561]
[1735396033114,0.2956,3388.9,3388.8,2.3926]
[1735396033310,4.8758636,3389.2,3388.8,2.3926]
[1735396033517,0.29558,3389.0,3388.9,3.2078]
[1735396034015,0.29558,3389.0,3388.9,3.50339]
[1735396034212,0.29558,3389.0,3388.9,3.2078]
[1735396034420,0.29558,3389.0,3388.9,44.0078]
[1735396034818,0.29558,3389.1,3388.9,44.0078]
[1735396035018,1.6680636,3389.2,3388.9,44.0078]
[1735396035220,0.29558,3389.0,3388.9,44.0078]
[1735396036016,0.29558,3389.0,3388.9,3.2078]
[1735396039213,1.1425,3389.1,3388.4,3.2078]
[1735396039419,0.29567,3388.0,3387.9,1.1771]
[1735396039912,0.29567,3388.1,3387.9,1.47277]
[1735396040116,1.6680636,3388.2,3387.9,1.1771]
[1735396040626,0.29567,3388.1,3387.9,1.47277]
[1735396040817,0.29567,3388.0,3387.9,1.47277]
[1735396041017,0.29567,3388.0,3387.9,1.1771]
[1735396042920,0.29567,3388.0,3387.9,1.47278]
[1735396043319,0.29567,3388.0,3387.9,1.1771]
[1735396043525,0.29567,3388.0,3387.9,1.47278]
[1735396044920,2.8957636,3388.8,3387.9,1.1771]
[1735396045128,1.6680636,3389.1,3388.4,3.2078]
[1735396045316,0.29559,3388.9,3388.8,3.2078]
[1735396045512,0.29559,3388.9,3388.8,4.3979]
[1735396045720,9.29225965,3389.4,3388.8,4.3979]
[1735396046020,9.29225965,3389.4,3389.2,3.50336]
[1735396046021,0.29556,3389.3,3389.2,3.50336]
[1735396046922,0.29556,3389.3,3389.2,3.2078]
[1735396047820,0.29559,3388.9,3388.8,4.3979]
[1735396048020,0.29559,3389.0,3388.9,0.29559]
[1735396048436,1.6680636,3389.4,3388.8,4.3979]
[1735396048726,0.29559,3388.9,3388.8,4.3979]
[1735396049228,0.29559,3388.9,3388.8,45.1979]
[1735396049622,0.29559,3388.9,3388.8,4.3979]
[1735396049820,0.29559,3388.9,3388.8,3.2078]
[1735396051220,3.2078,3388.9,3387.9,1.47807]
[1735396051423,0.29567,3388.0,3387.9,1.47807]
[1735396052229,0.29567,3388.0,3387.9,1.1824]
[1735396052527,0.29567,3388.0,3387.8,3.2078]
[1735396052528,0.29568,3387.9,3387.8,3.2078]
[1735396057130,0.29572,3387.5,3387.3,0.29573]
[1735396057329,0.29572,3387.4,3387.3,0.29573]
[1735396058726,0.29572,3387.4,3387.2,3.2078]
[1735396058934,0.29573,3387.3,3387.2,3.2078]
[1735396061424,1.9637936,3387.3,3387.2,3.2078]
[1735396062533,1.9637936,3387.3,3387.2,3.50354]
[1735396062732,0.29573,3387.3,3387.2,3.50354]
[1735396063834,0.29573,3387.3,3387.2,3.2078]
[1735396064038,0.29573,3387.3,3387.2,2.7078]
[1735396064530,1.9637936,3387.3,3387.2,2.7078]
[1735396067230,1.9637936,3387.3,3386.7,3.2078]
[1735396067231,0.29578,3386.8,3386.7,3.2078]
[1735396067432,1.6680636,3386.8,3386.2,4.3642]
[1735396067638,1.9638836,3386.3,3386.2,4.3642]
[1735396068438,1.9638836,3386.3,3386.2,3.2078]
[1735396068850,4.8758636,3386.3,3385.7,1.1564]
[1735396069029,1.9639236,3385.8,3385.7,1.1564]
[1735396069235,1.9639236,3385.8,3385.4,4.4262]
[1735396069236,0.29589,3385.5,3385.4,3.2078]
[1735396069434,1.9639536,3385.5,3385.4,44.0078]
[1735396069836,1.9639536,3385.5,3385.4,3.2078]
[1735396070953,4.8758636,3385.5,3384.5,4.5760897]
[1735396071240,1.6680636,3384.8,3384.5,5.7864897]
[1735396071439,0.29596,3384.7,3384.5,1.2104]
[1735396071638,0.29597,3384.6,3384.5,1.2104]
[1735396071937,0.29588,3385.6,3384.6,0.73993]
[1735396072135,1.6680636,3385.6,3385.3,3.2078]
[1735396072437,0.29589,3385.5,3385.3,3.50371]
[1735396072631,0.29589,3385.5,3385.3,3.2078]
[1735396072828,0.29589,3385.5,3385.4,40.8]
[1735396074934,1.6680636,3385.6,3385.3,3.2078]
[1735396075138,0.2959,3385.4,3385.3,3.2078]
[1735396075641,0.2959,3385.4,3385.3,44.0078]
[1735396075840,0.2959,3385.4,3385.3,3.2078]
[1735396076938,0.29594,3385.0,3384.7,45.47685]
[1735396077140,1.9640036,3385.0,3384.8,0.29595]
[1735396077334,1.6680636,3385.0,3384.7,45.1809]
[1735396077534,1.6680636,3385.0,3384.3,4.4206]
[1735396077740,0.29598,3384.5,3384.3,4.71659]
[1735396077944,0.29598,3384.5,3384.3,45.51659]
[1735396078447,1.6680636,3384.6,3384.3,4.71659]
[1735396078633,1.9640336,3384.6,3384.3,4.71659]
[1735396079240,1.6680636,3384.6,3384.3,4.4206]
[1735396079540,0.29599,3384.4,3384.3,4.4206]
[1735396079750,0.29598,3384.5,3384.3,4.71659]
[1735396079953,0.29599,3384.4,3384.3,4.4206]
[1735396080439,0.29599,3384.4,3384.3,3.2078]
[1735396081740,3.2078,3384.5,3383.8,3.2078]
[1735396081945,1.9641036,3383.8,3383.7,1.2092]
[1735396082444,1.6680636,3383.8,3383.4,3.2078]
[1735396082645,0.29606,3383.6,3383.5,1.1881]
[1735396082841,0.29606,3383.6,3383.5,41.9881]
[1735396084543,0.73986,3384.9,3383.5,41.9881]
[1735396084746,0.73986,3384.9,3384.3,3.2078]
[1735396084747,1.6680636,3384.9,3384.3,3.2078]
[1735396084945,1.9639836,3385.2,3385.0,0.29593]
[1735396085141,1.9639836,3385.2,3385.1,3.2078]
[1735396085353,1.6680636,3385.2,3384.6,3.2078]
[1735396085546,0.29594,3384.9,3384.7,0.29596]
[1735396085743,1.6680636,3385.2,3384.6,3.2078]
[1735396086047,0.29596,3384.7,3384.6,3.2078]
[1735396086436,0.29598,3384.5,3384.4,2.3335]
[1735396086639,1.6680636,3384.6,3384.1,3.2078]
[1735396086838,0.296,3384.2,3384.1,3.2078]
[1735396087250,1.6680636,3384.6,3384.2,0.296]
[1735396087549,0.29599,3384.4,3384.2,0.296]
[1735396087744,0.29599,3384.3,3384.1,3.50381]
[1735396088049,0.296,3384.2,3384.1,3.50381]
[1735396088248,0.296,3384.2,3384.1,3.2078]
[1735396088443,1.6680636,3384.3,3383.7,0.29604]
[1735396088638,2.4080636,3384.3,3383.9,3.2078]
[1735396089044,0.29602,3384.0,3383.9,3.2078]
[1735396089548,0.29263127,3384.0,3383.9,3.2078]
[1735396090452,0.29602,3384.0,3383.9,3.2078]
[1735396091040,1.9640836,3384.0,3383.9,3.2078]
[1735396091444,0.29606,3383.6,3383.5,46.4214]
[1735396091752,0.29606,3383.6,3383.5,46.71746]
[1735396091953,2.4081236,3384.0,3383.5,46.71746]
[1735396092250,0.29606,3383.6,3383.5,46.71746]
[1735396092655,5.6158636,3384.3,3383.8,0.29603]
[1735396092842,0.29603,3383.9,3383.5,46.4214]
[1735396093048,0.29604,3383.8,3383.7,0.29604]
[1735396093457,4.8758636,3384.3,3383.5,46.4214]
[1735396093652,1.6680636,3383.8,3383.5,46.4214]
[1735396093948,3.2078,3384.3,3383.5,46.4214]
[1735396093949,1.6680636,3384.1,3383.5,46.4214]
[1735396094149,0.29602,3384.0,3383.8,0.29603]
[1735396094357,1.6680636,3384.1,3383.5,44.0078]
[1735396094644,1.9641236,3383.6,3383.5,3.2078]
[1735396094845,0.29606,3383.6,3383.5,3.2078]
[1735396096259,1.6680636,3384.2,3383.5,3.2078]
[1735396096449,0.29604,3383.8,3383.6,0.29605]
[1735396096645,3.2078,3384.3,3383.5,4.3911]
[1735396096851,2.8398636,3384.5,3383.9,3.2078]
[1735396097053,0.29601,3384.2,3384.0,1.53192]
[1735396097255,0.29601,3384.1,3384.0,1.2359]
[1735396097755,0.29606,3383.6,3383.5,1.1833]
[1735396098055,1.6680636,3383.8,3383.4,3.2078]
[1735396098266,0.29606,3383.5,3383.4,3.2078]
[1735396098755,1.9641236,3383.5,3383.4,3.2078]
[1735396099362,0.29611,3383.0,3382.9,3.2078]
[1735396099563,1.9641736,3383.0,3382.9,3.2078]
[1735396100254,1.9641736,3383.0,3382.4,3.2078]
[1735396100255,0.29615,3382.5,3382.4,3.2078]
[1735396100453,0.29615,3382.5,3382.4,3.67071511]
[1735396100855,1.6680636,3383.0,3382.4,3.67071511]
[1735396101052,1.6680636,3383.0,3382.9,0.29612]
[1735396101256,3.2078,3383.2,3382.7,0.29613]
[1735396101257,3.50389,3383.2,3382.7,0.29613]
[1735396101451,3.50389,3383.2,3382.6,0.74036]
[1735396101452,3.2078,3383.2,3383.1,0.2961]
[1735396101658,3.2078,3383.2,3383.1,0.75901511]
[1735396101857,3.50389,3383.2,3383.1,0.46291511]
[1735396102257,0.29609,3383.2,3383.1,0.46291511]
[1735396102653,1.9641536,3383.3,3383.1,41.55901511]
[1735396102957,1.9641436,3383.3,3383.2,3.67071511]
[1735396103263,1.6680636,3383.3,3383.2,3.96680511]
[1735396103457,1.6680636,3383.6,3383.2,3.67071511]
[1735396103660,1.6680636,3383.6,3383.5,0.29606]
[1735396104058,1.6680636,3383.6,3383.5,0.75897511]
[1735396104261,3.2078,3383.8,3383.5,0.46291511]
[1735396104460,0.29606,3383.6,3383.5,0.29606]
[1735396104653,0.29606,3383.6,3383.4,1.1528]
[1735396104959,3.2078,3383.8,3383.5,0.46276641]
[1735396105159,0.29604,3383.8,3383.7,3.50385]
[1735396105362,1.6680636,3383.9,3383.8,0.29604]
[1735396105561,1.9640936,3383.9,3383.8,0.75880641]
[1735396105762,0.296,3384.2,3384.1,0.29601]
[1735396105962,1.6680636,3384.5,3383.8,1.66896641]
[1735396106158,3.2078,3384.7,3384.2,3.2078]
[1735396106361,0.29599,3384.4,3384.3,1.1528]
[1735396106563,0.29599,3384.4,3384.3,1.61556641]
[1735396106763,0.29599,3384.4,3384.3,0.46276641]
[1735396107455,1.46149,3384.4,3384.3,0.46276641]
[1735396108164,0.29601,3384.1,3384.0,3.2078]
[1735396108360,0.29601,3384.2,3384.1,0.29601]
[1735396108565,1.1655,3384.4,3384.1,0.46270261]
[1735396108865,0.29599,3384.3,3384.2,0.46270261]
[1735396109455,1.6680636,3384.5,3384.2,0.46270261]
[1735396109659,1.6680636,3384.5,3384.3,1.1922]
[1735396109864,0.29599,3384.4,3384.3,1.1922]
[1735396110059,0.29599,3384.4,3384.3,1.48819]
[1735396110264,1.6680636,3384.5,3384.3,1.1922]
[1735396110566,1.9640436,3384.5,3384.4,0.29599]
[1735396110765,1.6680636,3384.5,3384.4,0.29599]
[1735396110961,1.9640436,3384.5,3384.4,0.29599]
[1735396111157,1.14,3385.3,3384.3,1.1922]
[1735396111364,1.6680636,3385.1,3385.0,0.29593]
[1735396111568,1.6680636,3385.4,3384.8,3.2078]
[1735396111763,1.6680636,3385.7,3385.2,3.2078]
[1735396111968,0.29589,3385.5,3385.3,0.2959]
[1735396112164,0.29588,3385.6,3385.4,0.29589]
[1735396112359,0.29591,3385.4,3385.2,3.50371]
[1735396112665,1.6680636,3385.4,3385.3,0.29591]
[1735396113264,1.9639436,3385.7,3385.4,0.29589]
[1735396113468,0.29588,3385.6,3385.4,0.29589]
[1735396114270,0.29587,3385.7,3385.4,0.29589]
[1735396114468,0.29588,3385.6,3385.4,0.29589]
[1735396114958,0.2959,3385.4,3385.2,3.50371]
[1735396115267,1.6680636,3385.7,3385.2,3.2078]
[1735396115665,0.2959,3385.4,3385.2,3.50371]
[1735396116463,0.29591,3385.3,3385.2,3.2078]
[1735396116668,0.29591,3385.3,3385.0,1.1416]
[1735396116669,1.6680636,3385.4,3384.7,3.2078]
[1735396116867,0.29595,3384.9,3384.7,3.2078]
[1735396117363,0.29595,3384.9,3384.7,3.50376]
[1735396117961,0.29594,3385.0,3384.8,0.29595]
[1735396118267,0.29594,3385.0,3384.7,3.2078]
[1735396118574,0.29594,3385.0,3384.8,0.29595]
[1735396118967,1.03568,3385.3,3384.7,3.50375]
[1735396119161,0.29595,3384.9,3384.7,3.50375]
[1735396119569,0.29595,3384.8,3384.7,3.2078]
[1735396119772,0.29595,3384.8,3384.7,3.50376]
[1735396120275,0.29595,3384.8,3384.7,3.2078]
[1735396120573,0.29597,3384.6,3384.5,1.2417]
[1735396121069,1.6680636,3385.1,3384.5,1.2417]
[1735396121274,0.29594,3385.0,3384.9,0.29594]
[1735396121573,0.29593,3385.0,3384.9,0.29594]
[1735396122177,1.6680636,3385.1,3384.8,3.2078]
[1735396122474,0.29592,3385.2,3385.1,0.29592]
[1735396122674,0.29591,3385.3,3385.2,0.29591]
[1735396122876,0.29589,3385.6,3385.2,3.2078]
[1735396123069,0.29589,3385.6,3385.5,0.29589]
[1735396123266,0.29588,3385.6,3385.5,0.29589]
[1735396123477,0.29589,3385.5,3385.4,0.29589]
[1735396123673,1.6680636,3385.7,3385.3,1.2295]
[1735396123975,0.2959,3385.4,3385.3,1.2295]
[1735396124377,1.6680636,3385.4,3385.2,3.2078]
[1735396124869,0.7397,3385.7,3385.2,3.2078]
[1735396125072,0.29591,3385.3,3385.2,3.50371]
[1735396125472,0.29591,3385.3,3385.2,3.2078]
[1735396126474,0.29591,3385.3,3385.2,3.50372]
[1735396126670,0.29591,3385.3,3385.2,3.2078]
[1735396129275,1.6680636,3385.4,3384.8,3.50374]
[1735396129578,0.29594,3384.9,3384.8,3.2078]
[1735396129781,1.6680636,3385.1,3384.8,3.2078]
[1735396130081,0.29594,3384.9,3384.8,3.50375]
[1735396130373,0.29594,3385.0,3384.9,0.29593]
[1735396130778,0.7398,3385.3,3384.8,3.2078]
[1735396130992,0.29594,3384.9,3384.8,3.50374]
[1735396132281,0.29594,3384.9,3384.8,3.2078]
[1735396132982,0.29594,3384.9,3384.8,3.50375]
[1735396133181,0.29594,3385.0,3384.9,0.29594]
[1735396133794,0.29592,3385.2,3385.1,0.29592]
[1735396133998,0.29593,3385.1,3385.0,0.29592]
[1735396135895,0.29592,3385.2,3385.1,0.29592]
[1735396136400,0.29593,3385.1,3385.0,0.29593]
[1735396136602,1.6680636,3385.3,3384.8,3.2078]
[1735396136799,0.29592,3385.2,3385.1,0.29592]
[1735396137096,3.50369,3385.6,3385.5,0.29589]
[1735396137493,0.2959,3385.4,3384.9,1.93344]
[1735396137795,3.2078,3385.6,3385.0,0.46253529]
[1735396138096,0.29592,3385.2,3385.1,0.29592]
[1735396138496,0.29591,3385.3,3385.2,0.29591]
[1735396138696,0.29591,3385.3,3384.9,1.1936]
[1735396138697,0.29591,3385.4,3385.3,0.2959]
[1735396138899,3.2078,3385.6,3384.9,1.93345]
[1735396139100,0.29591,3385.3,3385.2,0.29591]
[1735396139300,0.29592,3385.1,3385.0,0.75847167]
[1735396139596,0.29592,3385.1,3385.0,0.29593]
[1735396140596,0.29592,3385.3,3385.2,0.2959]
[1735396140800,0.29592,3385.3,3385.2,3.96622722]
[1735396141700,0.29592,3385.3,3385.2,3.5037]
[1735396143397,0.29592,3385.3,3385.2,3.2078]
[1735396143896,0.29594,3384.9,3384.8,3.2078]
[1735396144095,0.29594,3384.9,3384.8,3.6703714]
[1735396144600,1.237,3385.2,3384.8,3.2078]
[1735396144901,0.29592,3385.2,3385.1,0.29591]
[1735396145092,1.6680636,3385.4,3384.8,3.94767]
[1735396145289,0.29593,3385.2,3385.1,0.29592]
[1735396146000,0.29593,3385.2,3385.1,0.75844282]
[1735396146994,0.29593,3385.2,3385.1,0.29592]
[1735396147894,0.29593,3385.2,3385.1,0.75846954]
[1735396148501,0.29591,3385.3,3385.2,0.2959]
[1735396148706,0.29591,3385.3,3385.2,3.5037]
[1735396149596,0.29591,3385.3,3385.2,3.2078]
[1735396149803,1.6680636,3385.4,3384.8,3.2078]
[1735396150002,0.29594,3384.9,3384.8,3.2078]
[1735396150401,0.29594,3384.9,3384.8,3.67038576]
[1735396151400,0.29594,3384.9,3384.8,3.96633576]
[1735396151796,0.29594,3385.1,3385.0,0.29592]
[1735396152003,2.4078336,3385.4,3384.8,4.87958576]
[1735396152207,1.9639836,3385.1,3385.0,0.46258576]
[1735396152406,0.29594,3384.9,3384.8,3.2078]
[1735396152704,0.29594,3384.9,3384.8,3.67038685]
[1735396153908,0.29594,3384.9,3384.8,3.2078]
[1735396154098,0.29594,3384.9,3384.8,3.9663396]
[1735396154808,0.29594,3384.9,3384.8,3.6703896]
[1735396155707,0.29594,3384.9,3384.8,3.9663396]
[1735396156297,0.29594,3384.9,3384.8,3.6703896]
[1735396158308,0.29594,3384.9,3384.8,3.2078]
[1735396159204,1.49234,3384.9,3384.8,3.2078]
[1735396159701,1.1964,3384.9,3384.4,3.2078]
[1735396159908,1.9640436,3384.5,3384.4,3.2078]
[1735396160106,1.9640436,3384.5,3384.4,3.67044566]
[1735396160311,1.9640436,3384.5,3384.4,3.2078]
[1735396161703,0.29598,3384.5,3384.4,3.50379]
[1735396161902,5.74094313,3384.8,3384.7,0.29596]
[1735396162101,5.74094313,3384.8,3384.4,3.2078]
[1735396162102,6.03688313,3384.9,3384.8,0.29595]
[1735396162301,6.03688313,3384.9,3384.8,3.2078]
[1735396162904,0.29595,3384.8,3384.7,0.29595]
[1735396163099,0.29597,3384.7,3384.6,0.29596]
[1735396164112,0.29598,3384.5,3384.4,3.2078]
[1735396164307,1.9640436,3384.5,3384.4,3.2078]
[1735396167510,0.29602,3384.0,3383.9,3.2078]
[1735396168204,0.29604,3383.8,3383.7,4.5760897]
[1735396168627,1.9641036,3383.8,3383.7,4.5760897]
[1735396168912,0.29606,3383.5,3383.4,1.1632]
[1735396169121,1.6680636,3383.8,3383.3,4.8721697]
[1735396169316,0.29607,3383.4,3383.3,4.5760897]
[1735396170213,0.29608,3383.3,3383.2,3.2078]
[1735396170414,1.46418,3383.3,3383.2,3.2078]
[1735396171105,1.6680636,3383.5,3383.2,3.2078]
[1735396171413,0.29607,3383.5,3383.4,0.29607]
[1735396171634,0.29608,3383.4,3383.3,0.29608]
[1735396172210,0.29608,3383.3,3383.2,3.50389]
[1735396172602,0.29608,3383.3,3383.2,3.2078]
[1735396174514,1.6680636,3383.5,3382.6,4.70524]
[1735396174715,0.29613,3382.8,3382.6,4.70524]
[1735396174915,1.6680636,3383.0,3382.6,4.4091]
[1735396175213,0.29613,3382.7,3382.6,4.4091]
[1735396175413,1.9641936,3382.7,3382.6,3.2078]
[1735396176912,2.4084136,3382.7,3382.2,3.2078]
[1735396177216,1.9642336,3382.3,3382.2,3.2078]
[1735396178710,1.9642336,3382.3,3381.9,1.2013]
[1735396178711,1.6680636,3382.3,3381.9,1.2013]
[1735396178911,0.29621,3381.8,3381.7,3.2078]
[1735396180312,1.6680636,3382.0,3381.7,3.2078]
[1735396180506,0.29619,3382.1,3381.9,0.2962]
[1735396180712,1.6680636,3382.3,3382.0,1.1365]
[1735396180911,0.29618,3382.2,3382.0,1.1365]
[1735396181312,0.29619,3382.1,3382.0,2.3562]
[1735396181512,0.29619,3382.1,3382.0,1.1365]
[1735396183319,0.29621,3381.8,3381.7,3.2078]
[1735396184320,1.6680636,3381.9,3381.7,3.2078]
[1735396184514,0.29621,3381.8,3381.7,3.2078]
[1735396184714,0.29621,3381.9,3381.7,3.50402]
[1735396184913,0.29621,3381.9,3381.7,3.2078]
[1735396185114,0.29621,3381.9,3381.7,3.50402]
[1735396185316,0.29621,3381.9,3381.7,3.2078]
[1735396185922,0.29621,3381.8,3381.7,3.2078]
[1735396190220,0.29622,3381.7,3381.6,1.2122]
[1735396190924,0.29624,3381.5,3381.4,3.2078]
[1735396191218,0.29624,3381.5,3381.4,4.3611]
[1735396191614,0.29624,3381.5,3381.4,3.2078]
[1735396195020,1.52164,3381.5,3381.4,3.2078]
[1735396195217,2.70204,3381.5,3381.4,3.2078]
[1735396196219,1.6680636,3381.6,3381.1,3.2078]
[1735396196519,0.29627,3381.2,3381.1,3.50407]
[1735396196718,1.9643236,3381.3,3381.2,0.29627]
[1735396196913,0.29627,3381.2,3381.1,3.2078]
[1735396197523,2.69197,3381.2,3381.1,3.2078]
[1735396198228,2.69197,3381.2,3380.8,1.1579]
[1735396198229,0.29629,3380.9,3380.8,4.3657]
[1735396198418,1.9643536,3380.9,3380.8,4.3657]
[1735396199622,1.9643536,3380.9,3380.8,4.662]
[1735396200027,1.6680636,3380.9,3380.8,4.662]
[1735396200220,0.29629,3381.1,3381.0,0.29627]
[1735396200421,0.29629,3381.0,3380.9,0.29628]
[1735396200617,2.8273636,3381.2,3380.8,4.3657]
[1735396200816,1.9643436,3381.2,3381.1,0.29627]
[1735396201126,1.6680636,3381.5,3380.9,1.1147]
[1735396201325,0.29626,3381.4,3381.3,0.29625]
[1735396201519,1.9643036,3381.5,3381.4,0.29625]
[1735396201914,1.6680636,3381.5,3381.4,0.29625]
[1735396202120,1.6680636,3381.8,3381.7,0.29621]
[1735396202625,0.29621,3381.9,3381.8,0.29621]
[1735396203224,0.29617,3382.3,3381.7,3.2078]
[1735396203429,0.29619,3382.1,3382.0,0.29619]
[1735396203654,1.6680636,3382.1,3381.9,0.2962]
[1735396203927,0.29623,3381.6,3381.5,1.47373]
[1735396204128,1.6680636,3381.6,3381.5,1.1775]
[1735396204330,1.6680636,3381.6,3381.5,1.47374]
[1735396204632,1.9642936,3381.6,3381.5,1.1775]
[1735396204829,1.6680636,3381.9,3381.5,1.1775]
[1735396205129,4.8758636,3382.2,3381.6,0.46299696]
[1735396205328,0.2962,3382.0,3381.9,0.2962]
[1735396206227,4.8758636,3382.2,3381.5,1.1775]
[1735396206434,1.6680636,3381.7,3381.5,1.1775]
[1735396206733,0.29615,3382.6,3382.5,0.29615]
[1735396206928,1.9175,3383.0,3381.6,0.46301333]
[1735396206929,1.9641736,3383.0,3382.9,0.29612]
[1735396207134,1.6680636,3383.3,3383.1,0.29609]
[1735396207433,1.6680636,3383.3,3383.2,3.50389]
[1735396207822,1.6680636,3383.6,3383.2,3.2078]
[1735396208135,0.29608,3383.4,3383.2,3.50388]
[1735396208326,1.6680636,3383.6,3383.2,3.2078]
[1735396208525,0.29606,3383.5,3383.3,1.1288]
[1735396208726,0.29606,3383.5,3383.3,1.42488]
[1735396209132,0.29607,3383.5,3383.3,1.42488]
[1735396209530,1.9641236,3383.6,3383.4,0.29607]
[1735396210028,3.2078,3384.0,3383.3,1.1288]
[1735396210228,3.2078,3384.0,3383.4,1.2149]
[1735396210534,1.6680636,3384.2,3383.8,0.29603]
[1735396210734,0.29603,3383.9,3383.7,3.50384]
[1735396211031,0.29601,3384.1,3383.9,0.29603]
[1735396211231,0.29601,3384.1,3383.7,3.2078]
[1735396211232,3.50379,3384.4,3384.1,0.29601]
[1735396211634,3.50379,3384.4,3384.2,1.217]
[1735396211829,1.1746,3384.6,3384.2,1.217]
[1735396211830,1.47057,3384.6,3384.3,0.29599]
[1735396212032,0.29599,3384.4,3384.2,4.7208]
[1735396212233,0.29598,3384.5,3384.2,4.7208]
[1735396213134,1.1746,3384.6,3384.2,4.4248]
[1735396213433,3.2078,3384.8,3384.2,4.4248]
[1735396213838,0.29599,3384.4,3384.2,4.4248]
[1735396214033,0.29598,3384.5,3384.2,4.7208]
[1735396214235,0.29598,3384.5,3384.2,4.4248]